Workbook

Sheet 农机员
A1: 高新区2021年7月-12月年满60周岁“三员”人员生活补助发放表
A2: 老庄子镇2021年7月-12月年满60周岁农机员生活补助公示表
A3: 公示单位（盖章）： | I3: 公示日期：
A4: 序号 | B4: 姓名 | C4: 原工作单位 | D4: 性别 | E4: 身份证号码 | F4: 户口所在地（镇办、村） | G4: 公益服务认定时间 | H4: 公益服务认定年限 | I4: 月补助金额（元） | J4: 补贴月数 | K4: 补助总金额 | L4: 补助时间 | M4: 备注 | Z4: 农机去掉2人工作不满三年
A5: 1 | B5: 张子艳 | C5: 老庄子公社农机站 | D5: 男 | E5: 13022119520927**** | F5: 老庄子镇沙雾庄村 | G5: 73.4--83.5 | H5: 11 | I5: =H5*20 -> 220 | J5: 6 | K5: =I5*J5 -> 1320 | L5: 2021.7-12
A6: 2 | B6: 王胜海 | C6: 老庄子公社农机站 | D6: 男 | E6: 13022119500617**** | F6: 老庄子镇沙雾庄村 | G6: 70.3--85.12 | H6: 16 | I6: =H6*20 -> 320 | J6: 6 | K6: =I6*J6 -> 1920 | L6: 2021.7-12
A7: 3 | B7: 尹贺禄 | C7: 老庄子公社农机站 | D7: 男 | E7: 13022119550302**** | F7: 老庄子镇沙雾庄村 | G7: 81.1-85.12 | H7: 5 | I7: 100 | J7: 6 | K7: 600 | L7: 2021.7-12
A8: 4 | B8: 王德贵 | C8: 老庄子公社农机站 | D8: 男 | E8: 13022119390707**** | F8: 老庄子镇沙雾庄村 | G8: 76.5--85.12 | H8: 10 | I8: 200 | J8: 6 | K8: 1200 | L8: 2021.7-12
A9: 5 | B9: 张全 | C9: 老庄子公社农机站 | D9: 男 | E9: 13022119570807**** | F9: 老庄子镇沙雾庄村 | G9: 75.9--85.12 | H9: 11 | I9: 220 | J9: 6 | K9: 1320 | L9: 2021.7-12
A10: 6 | B10: 贾振江 | C10: 老庄子公社农机站 | D10: 男 | E10: 13022119520810**** | F10: 老庄子镇陈家庄村 | G10: 70.9--85.6 | H10: 15 | I10: 300 | J10: 6 | K10: 1800 | L10: 2021.7-12
A11: 7 | B11: 王振东 | C11: 老庄子公社农机站 | D11: 男 | E11: 13022119601102**** | F11: 老庄子镇陈家庄村 | G11: 78.12--85.12 | H11: 8 | I11: 160 | J11: 6 | K11: 960 | L11: 2021.7-12
A12: 8 | B12: 荣振齐 | C12: 老庄子公社农机站 | D12: 男 | E12: 13022119571118**** | F12: 老庄子镇陈家庄村 | G12: 81.5--85.12 | H12: 5 | I12: 100 | J12: 6 | K12: 600 | L12: 2021.7-12
A13: 9 | B13: 王国利 | C13: 老庄子公社农机站 | D13: 男 | E13: 13022119580318**** | F13: 老庄子镇陈家庄村 | G13: 76.4--85.12 | H13: 10 | I13: 200 | J13: 6 | K13: 1200 | L13: 2021.7-12
A14: 10 | B14: 张振国 | C14: 老庄子公社农机站 | D14: 男 | E14: 13022119540624**** | F14: 老庄子镇陈家庄村 | G14: 79.5--85.5 | H14: 7 | I14: 140 | J14: 6 | K14: 840 | L14: 2021.7-12
A15: 11 | B15: 董清朝 | C15: 老庄子公社农机站 | D15: 男 | E15: 13022119570225**** | F15: 老庄子镇魏庄子村 | G15: 76.3--85.12 | H15: 10 | I15: 200 | J15: 6 | K15: 1200 | L15: 2021.7-12
A16: 12 | B16: 王春开 | C16: 老庄子公社农机站 | D16: 男 | E16: 13022119440914**** | F16: 老庄子镇魏庄子村 | G16: 71.6--84.8 | H16: 14 | I16: 280 | J16: 6 | K16: 1680 | L16: 2021.7-12
A17: 13 | B17: 狄占海 | C17: 老庄子公社农机站 | D17: 男 | E17: 13022119570622**** | F17: 老庄子镇魏庄子村 | G17: 76.8--85.12 | H17: 10 | I17: 200 | J17: 6 | K17: 1200 | L17: 2021.7-12
A18: 14 | B18: 韩连平 | C18: 老庄子公社农机站 | D18: 男 | E18: 13022119561111**** | F18: 老庄子镇魏庄子村 | G18: 75.3--85.12 | H18: 11 | I18: 220 | J18: 6 | K18: 1320 | L18: 2021.7-12
A19: 15 | B19: 李广文 | C19: 老庄子公社农机站 | D19: 男 | E19: 13022119560603**** | F19: 老庄子镇新村 | G19: 76.4--85.12 | H19: 10 | I19: 200 | J19: 6 | K19: 1200 | L19: 2021.7-12
A20: 16 | B20: 侯保申 | C20: 老庄子公社农机站 | D20: 男 | E20: 13022119571007**** | F20: 老庄子镇新村 | G20: 77.3--85.12 | H20: 9 | I20: 180 | J20: 6 | K20: 1080 | L20: 2021.7-12
A21: 17 | B21: 吴振洲 | C21: 毛家坨公社农机站 | D21: 男 | E21: 13022119540403**** | F21: 老庄子镇前冯各庄村 | G21: 78.3--85.12 | H21: 8 | I21: 160 | J21: 6 | K21: 960 | L21: 2021.7-12
A22: 18 | B22: 王贺 | C22: 毛家坨公社农机站 | D22: 男 | E22: 13022119551101**** | F22: 老庄子镇前冯各庄村 | G22: 77.5--85.12 | H22: 9 | I22: 180 | J22: 6 | K22: 1080 | L22: 2021.7-12
A23: 19 | B23: 姜德存 | C23: 毛家坨公社农机站 | D23: 男 | E23: 13022119540921**** | F23: 老庄子镇后冯各庄村 | G23: 78.8--85.12 | H23: 8 | I23: =H23*20 -> 160 | J23: 6 | K23: 960 | L23: 2021.7-12
A24: 20 | B24: 周静春 | C24: 毛家坨公社农机站 | D24: 男 | E24: 13022119550726**** | F24: 老庄子镇后冯各庄村 | G24: 74.4--85.12 | H24: 12 | I24: =H24*20 -> 240 | J24: 6 | K24: 1440 | L24: 2021.7-12
A25: 21 | B25: 董双喜 | C25: 毛家坨公社农机站 | D25: 男 | E25: 13022119580422**** | F25: 老庄子镇后冯各庄村 | G25: 76.5--85.12 | H25: 10 | I25: 200 | J25: 6 | K25: 1200 | L25: 2021.7-12
A26: 22 | B26: 董福平 | C26: 毛家坨公社农机站 | D26: 男 | E26: 13022119540705**** | F26: 老庄子镇后冯各庄村 | G26: 75.6--85.12 | H26: 11 | I26: 220 | J26: 6 | K26: 1320 | L26: 2021.7-12
A27: 23 | B27: 田久贵 | C27: 小城子公社农机站 | D27: 男 | E27: 13022119490712**** | F27: 老庄子镇党家庄村 | G27: 73.4--85.12 | H27: 13 | I27: 260 | J27: 6 | K27: 1560 | L27: 2021.7-12
A28: 24 | B28: 党继锁 | C28: 小城子公社农机站 | D28: 男 | E28: 13022119500808**** | F28: 老庄子镇党家庄村 | G28: 79.5--83.11 | H28: 5 | I28: 100 | J28: 6 | K28: 600 | L28: 2021.7-12
A29: 25 | B29: 柳福顺 | C29: 小城子公社农机站 | D29: 男 | E29: 13022119520909**** | F29: 老庄子镇党家庄村 | G29: 74.3--85.12 | H29: 12 | I29: 240 | J29: 6 | K29: 1440 | L29: 2021.7-12
A30: 26 | B30: 田长兴 | C30: 小城子公社农机站 | D30: 男 | E30: 13022119531009**** | F30: 老庄子镇党家庄村 | G30: 76.3--84.11 | H30: 9 | I30: 180 | J30: 6 | K30: 1080 | L30: 2021.7-12
A31: 27 | B31: 赵生儒 | C31: 小城子公社农机站 | D31: 男 | E31: 13022119450702**** | F31: 老庄子镇夏屋村 | G31: 73.5--82.11 | H31: 10 | I31: 200 | J31: 6 | K31: 1200 | L31: 2021.7-12
A32: 28 | B32: 赵生奎 | C32: 小城子公社农机站 | D32: 男 | E32: 13022119551125**** | F32: 老庄子镇夏屋村 | G32: 73.12--85.12 | H32: 13 | I32: 260 | J32: 6 | K32: 1560 | L32: 2021.7-12
A33: 29 | B33: 赵振双 | C33: 小城子公社农机站 | D33: 男 | E33: 13022119440625**** | F33: 老庄子镇夏屋村 | G33: 74.2--85.12 | H33: 12 | I33: 240 | J33: 6 | K33: 1440 | L33: 2021.7-12
A34: 30 | B34: 赵振奎 | C34: 小城子公社农机站 | D34: 男 | E34: 13022119560614**** | F34: 老庄子镇夏屋村 | G34: 75.2--82.12 | H34: 8 | I34: 160 | J34: 6 | K34: 960 | L34: 2021.7-12
A35: 31 | B35: 赵金科 | C35: 小城子公社农机站 | D35: 男 | E35: 13022119520816**** | F35: 老庄子镇瓦房庄村 | G35: 74.2--85.12 | H35: 12 | I35: 240 | J35: 6 | K35: 1440 | L35: 2021.7-12
A36: 32 | B36: 刘汉青 | C36: 小城子公社农机站 | D36: 男 | E36: 13022119580520**** | F36: 老庄子镇瓦房庄村 | G36: 77.2--85.12 | H36: 9 | I36: 180 | J36: 6 | K36: 1080 | L36: 2021.7-12
A37: 33 | B37: 陈合仁 | C37: 小城子公社农机站 | D37: 男 | E37: 13022119580327**** | F37: 老庄子镇瓦房庄村 | G37: 76.4--84.11 | H37: 9 | I37: 180 | J37: 6 | K37: 1080 | L37: 2021.7-12
A38: 34 | B38: 崔万岩 | C38: 小城子公社农机站 | D38: 男 | E38: 13022119560909**** | F38: 老庄子镇瓦房庄村 | G38: 74.10--84.9 | H38: 10 | I38: 200 | J38: 6 | K38: 1200 | L38: 2021.7-12
A39: 35 | B39: 陈存仁 | C39: 小城子公社农机站 | D39: 男 | E39: 13022119390921**** | F39: 老庄子镇瓦房庄村 | G39: 73.8--84.11 | H39: 12 | I39: 240 | J39: 6 | K39: 1440 | L39: 2021.7-12
A40: 36 | B40: 陈计成 | C40: 小城子公社农机站 | D40: 男 | E40: 13022119550505**** | F40: 老庄子镇瓦房庄村 | G40: 73.6--84.6 | H40: 12 | I40: 240 | J40: 6 | K40: 1440 | L40: 2021.7-12
A41: 37 | B41: 陈相高 | C41: 小城子公社农机站 | D41: 男 | E41: 13022119440404**** | F41: 老庄子镇瓦房庄村 | G41: 73.4--84.9 | H41: 12 | I41: 240 | J41: 6 | K41: 1440 | L41: 2021.7-12
A42: 38 | B42: 张久华 | C42: 小城子公社农机站 | D42: 男 | E42: 13022119600911**** | F42: 老庄子镇瓦房庄村 | G42: 78.10--85.12 | H42: 8 | I42: 160 | J42: 6 | K42: 960 | L42: 2021.7-12
A43: 39 | B43: 何守柱 | C43: 小城子公社农机站 | D43: 男 | E43: 13022119560217**** | F43: 老庄子镇李官屯村 | G43: 74.3--85.12 | H43: 12 | I43: 240 | J43: 6 | K43: 1440 | L43: 2021.7-12
A44: 40 | B44: 李应山 | C44: 小城子公社农机站 | D44: 男 | E44: 13022119510416**** | F44: 老庄子镇李官屯村 | G44: 74.2--84.12 | H44: 11 | I44: 220 | J44: 6 | K44: 1320 | L44: 2021.7-12
A45: 41 | B45: 李应才 | C45: 小城子公社农机站 | D45: 男 | E45: 13022119591010**** | F45: 老庄子镇李官屯村 | G45: 77.11--84.11 | H45: 8 | I45: 160 | J45: 6 | K45: 960 | L45: 2021.7-12
A46: 42 | B46: 李百云 | C46: 小城子公社农机站 | D46: 男 | E46: 13022119570326**** | F46: 老庄子镇李官屯村 | G46: 78.3--85.12 | H46: 8 | I46: 160 | J46: 6 | K46: 960 | L46: 2021.7-12
A47: 43 | B47: 李贺彩 | C47: 小城子公社农机站 | D47: 男 | E47: 13022119570907**** | F47: 老庄子镇李官屯村 | G47: 76.3--84.11 | H47: 9 | I47: 180 | J47: 6 | K47: 1080 | L47: 2021.7-12
A48: 44 | B48: 李昌润 | C48: 小城子公社农机站 | D48: 男 | E48: 13022119570820**** | F48: 老庄子镇李官屯村 | G48: 76.6--85.12 | H48: 10 | I48: 200 | J48: 6 | K48: 1200 | L48: 2021.7-12
A49: 45 | B49: 李柏金 | C49: 小城子公社农机站 | D49: 男 | E49: 13022119431104**** | F49: 老庄子镇李官屯村 | G49: 75.2--85.12 | H49: 11 | I49: 220 | J49: 6 | K49: 1320 | L49: 2021.7-12
A50: 46 | B50: 赵殿来 | C50: 老庄子公社农机站 | D50: 男 | E50: 13022119450103**** | F50: 老庄子镇周凤庄村 | G50: 73.7--85.12 | H50: 13 | I50: 260 | J50: 6 | K50: 1560 | L50: 2021.7-12
A51: 47 | B51: 张凤阁 | C51: 老庄子公社农机站 | D51: 男 | E51: 13022119540620**** | F51: 老庄子镇周凤庄村 | G51: 76.9--85.12 | H51: 10 | I51: 200 | J51: 6 | K51: 1200 | L51: 2021.7-12
A52: 48 | B52: 常金全 | C52: 老庄子公社农机站 | D52: 男 | E52: 13022119511004**** | F52: 老庄子镇周凤庄村 | G52: 73.9--85.12 | H52: 13 | I52: 260 | J52: 6 | K52: 1560 | L52: 2021.7-12
A53: 49 | B53: 刘景维 | C53: 老庄子公社农机站 | D53: 男 | E53: 13022119571220**** | F53: 老庄子镇七王庄村 | G53: 76.1--85.12 | H53: 10 | I53: 200 | J53: 6 | K53: 1200 | L53: 2021.7-12
A54: 50 | B54: 高振良 | C54: 老庄子公社农机站 | D54: 男 | E54: 13022119591002**** | F54: 老庄子镇七王庄村 | G54: 77.11--85.12 | H54: 9 | I54: 180 | J54: 6 | K54: 1080 | L54: 2021.7-12
A55: 51 | B55: 徐宝有 | C55: 老庄子公社农机站 | D55: 男 | E55: 13022119570914**** | F55: 老庄子镇七王庄村 | G55: 79.3--85.12 | H55: 7 | I55: 140 | J55: 6 | K55: 840 | L55: 2021.7-12
A56: 52 | B56: 安文来 | C56: 老庄子公社农机站 | D56: 男 | E56: 13022119501210**** | F56: 老庄子镇南王庄村 | G56: 71.3--85.12 | H56: 15 | I56: 300 | J56: 6 | K56: 1800 | L56: 2021.7-12
A57: 53 | B57: 殷晓岩 | C57: 老庄子公社农机站 | D57: 男 | E57: 13022119590710**** | F57: 老庄子镇南王庄村 | G57: 81.2--85.12 | H57: 5 | I57: =H57*20 -> 100 | J57: 6 | K57: 600 | L57: 2021.7-12
A58: 54 | B58: 李福来 | C58: 老庄子公社农机站 | D58: 男 | E58: 13022119440314**** | F58: 老庄子镇南王庄村 | G58: 76.9--85.10 | H58: 10 | I58: 200 | J58: 6 | K58: =I58*J58 -> 1200 | L58: 2021.7-12
A59: 55 | B59: 安殿国 | C59: 老庄子公社农机站 | D59: 男 | E59: 13022119530216**** | F59: 老庄子镇南王庄村 | G59: 78.3--85.12 | H59: 8 | I59: 160 | J59: 6 | K59: 960 | L59: 2021.7-12
A60: 56 | B60: 李春明 | C60: 老庄子公社农机站 | D60: 男 | E60: 13022119530210**** | F60: 老庄子镇老庄子村 | G60: 71.3--85.12 | H60: 15 | I60: 300 | J60: 6 | K60: 1800 | L60: 2021.7-12
A61: 57 | B61: 宣洪合 | C61: 老庄子公社农机站 | D61: 男 | E61: 13022119540718**** | F61: 老庄子镇老庄子村 | G61: 72.8--85.12 | H61: 14 | I61: 280 | J61: 6 | K61: 1680 | L61: 2021.7-12
A62: 58 | B62: 宋子良 | C62: 老庄子公社农机站 | D62: 男 | E62: 13022119400911**** | F62: 老庄子镇老庄子村 | G62: 74.11--85.12 | H62: 12 | I62: 240 | J62: 6 | K62: 1440 | L62: 2021.7-12
A63: 59 | B63: 张守合 | C63: 老庄子公社农机站 | D63: 男 | E63: 13022119370326**** | F63: 老庄子镇老庄子村 | G63: 73.4--85.12 | H63: 13 | I63: 260 | J63: 6 | K63: 1560 | L63: 2021.7-12
A64: 60 | B64: 张玉强 | C64: 老庄子公社农机站 | D64: 男 | E64: 13022119460628**** | F64: 老庄子镇老庄子村 | G64: 69.9--85.12 | H64: 17 | I64: =H64*20 -> 340 | J64: 6 | K64: 2040 | L64: 2021.7-12
A65: 61 | B65: 王守江 | C65: 小城子公社农机站 | D65: 男 | E65: 13022119550410**** | F65: 老庄子镇小城子村 | G65: 74.3--85.12 | H65: 12 | I65: =H65*20 -> 240 | J65: 6 | K65: 1440 | L65: 2021.7-12
A66: 62 | B66: 韩宝良 | C66: 小城子公社农机站 | D66: 男 | E66: 13022119540929**** | F66: 老庄子镇大树韩庄子村 | G66: 73.4--83.11 | H66: 11 | I66: 220 | J66: 6 | K66: 1320 | L66: 2021.7-12
A67: 63 | B67: 冯继文 | C67: 小城子公社农机站 | D67: 男 | E67: 13022119481117**** | F67: 老庄子镇大树韩庄子村 | G67: 80.2--85.12 | H67: 6 | I67: 120 | J67: 6 | K67: 720 | L67: 2021.7-12
A68: 64 | B68: 陈树全 | C68: 毛家坨农机站 | D68: 男 | E68: 13022119400501**** | F68: 老庄子镇杨信庄村 | G68: 74.11--84.11 | H68: 11 | I68: 220 | J68: 6 | K68: 1320 | L68: 2021.7-12
A69: 合计 | I69: =SUM(I5:I68) -> 13320 | K69: =SUM(K5:K68) -> 79920
A70: 三女河办事处2021年7月-12月年满60周岁农机员生活补助公示表
A71: 公示单位（盖章）： | I71: 公示日期：
A72: 序号 | B72: 姓名 | C72: 原工作单位 | D72: 性别 | E72: 身份证号码 | F72: 户口所在地（镇、村） | G72: 公益服务认定时间 | H72: 公益服务认定年限 | I72: 月补助金额（元） | J72: 补贴月数 | K72: 补助总金额 | L72: 补助时间 | M72: 备注
A73: 1 | B73: 裴玉阁 | C73: 唐山市丰润县三女河公社农机站 | D73: 男 | E73: 13022119361110**** | F73: 丰润区石各庄镇三女河村 | G73: 81.3--85.12 | H73: 5 | I73: =H73*20 -> 100 | J73: 6 | K73: =I73*J73 -> 600 | L73: 2021.7-12
A74: 2 | B74: 乔文申 | C74: 唐山市丰润县三女河公社农机站 | D74: 男 | E74: 13022119350813**** | F74: 丰润区石各庄镇三女河村 | G74: 81.3--85.12 | H74: 5 | I74: =H74*20 -> 100 | J74: 6 | K74: =I74*J74 -> 600 | L74: 2021.7-12
A75: 3 | B75: 罗仕玉 | C75: 唐山市丰润县老庄子镇毛家坨公社农机站 | D75: 男 | E75: 13022119580905**** | F75: 丰润区老庄子镇毛三村 | G75: 76.10--85.12 | H75: 10 | I75: 200 | J75: 6 | K75: 1200 | L75: 2021.7-12
A76: 4 | B76: 姚玉山 | C76: 唐山市丰润县老庄子镇毛家坨公社农机站 | D76: 男 | E76: 13022119530920**** | F76: 丰润区老庄子镇白树庄 | G76: 75.11--85.12 | H76: 11 | I76: 220 | J76: 6 | K76: 1320 | L76: 2021.7-12
A77: 5 | B77: 张占国 | C77: 唐山市丰润县老庄子镇毛家坨公社农机站 | D77: 男 | E77: 13022119590208**** | F77: 丰润区老庄子镇毛四村 | G77: 77.3--83.6 | H77: 7 | I77: 140 | J77: 6 | K77: 840 | L77: 2021.7-12
A78: 6 | B78: 张贵林 | C78: 唐山市丰润县老庄子镇毛家坨公社农机站 | D78: 男 | E78: 13022119580719**** | F78: 丰润区老庄子镇毛三村 | G78: 77.8--85.12 | H78: 9 | I78: 180 | J78: 6 | K78: 1080 | L78: 2021.7-12
A79: 7 | B79: 陈庆台 | C79: 唐山市丰润县老庄子镇毛家坨公社农机站 | D79: 男 | E79: 13022119470507**** | F79: 丰润区老庄子镇崔家屯村 | G79: 78.2--85.12 | H79: 8 | I79: 160 | J79: 6 | K79: 960 | L79: 2021.7-12
A80: 8 | B80: 杨贵全 | C80: 唐山市丰润县老庄子镇毛家坨公社农机站 | D80: 男 | E80: 13022119580911**** | F80: 丰润区老庄子镇毛四村 | G80: 76.10--85.12 | H80: 10 | I80: 200 | J80: 6 | K80: 1200 | L80: 2021.7-12
A81: 9 | B81: 宋国会 | C81: 唐山市丰润县老庄子镇毛家坨公社农机站 | D81: 男 | E81: 13022119580910**** | F81: 丰润区老庄子镇范家坨村 | G81: 76.10--85.12 | H81: 10 | I81: 200 | J81: 6 | K81: 1200 | L81: 2021.7-12
A82: 10 | B82: 张尔华 | C82: 唐山市丰润县老庄子镇毛家坨公社农机站 | D82: 男 | E82: 13022119570826**** | F82: 丰润区老庄子镇毛二村 | G82: 76.2--85.12 | H82: 10 | I82: 200 | J82: 4 | K82: 800 | L82: 2021.7-10 | M82: 2021.10.18去世，11月停发。
A83: 11 | B83: 兰友芳 | C83: 唐山市丰润县老庄子镇毛家坨公社农机站 | D83: 男 | E83: 13022119511023**** | F83: 丰润区老庄子镇毛二村 | G83: 75.5--85.12 | H83: 11 | I83: 220 | J83: 6 | K83: 1320 | L83: 2021.7-12
A84: 12 | B84: 苗印才 | C84: 唐山市丰润县三女河公社农机管理站 | D84: 男 | E84: 13022119551003**** | F84: 丰润区石各庄镇高庄子村 | G84: 74.11--85.12 | H84: 12 | I84: 240 | J84: 6 | K84: 1440 | L84: 2021.7-12
A85: 13 | B85: 张贵申 | C85: 唐山市丰润县老庄子镇毛家坨公社农机站 | D85: 男 | E85: 13022119511111**** | F85: 丰润区老庄子镇白树庄 | G85: 76.8--85.12 | H85: 10 | I85: 200 | J85: 6 | K85: 1200 | L85: 2021.7-12
A86: 14 | B86: 武志成 | C86: 唐山市丰润县老庄子镇毛家坨公社农机站 | D86: 男 | E86: 13022119540214**** | F86: 丰润区老庄子镇崔家屯村 | G86: 75.11--85.12 | H86: 11 | I86: 220 | J86: 6 | K86: 1320 | L86: 2021.7-12
A87: 15 | B87: 张秋才 | C87: 唐山市丰润县老庄子镇毛家坨公社农机站 | D87: 男 | E87: 13022119550613**** | F87: 丰润区老庄子镇姚家庄村 | G87: 74.9--85.12 | H87: 12 | I87: 240 | J87: 6 | K87: 1440 | L87: 2021.7-12
A88: 16 | B88: 徐文生 | C88: 唐山市丰润县老庄子镇毛家坨公社农机站 | D88: 男 | E88: 13022119490418**** | F88: 丰润区老庄子镇毛三村 | G88: 75.8--85.12 | H88: 11 | I88: 220 | J88: 6 | K88: 1320 | L88: 2021.7-12
A89: 17 | B89: 祖连国 | C89: 唐山市丰润县老庄子镇毛家坨公社农机站 | D89: 男 | E89: 13022119550728**** | F89: 丰润区老庄子镇范家坨村 | G89: 75.9--85.12 | H89: 11 | I89: 220 | J89: 6 | K89: 1320 | L89: 2021.7-12
A90: 18 | B90: 徐宝玉 | C90: 唐山市丰润县老庄子镇毛家坨公社农机站 | D90: 男 | E90: 13022119580205**** | F90: 丰润区老庄子镇安家庄村 | G90: 76.10--85.12 | H90: 10 | I90: 200 | J90: 6 | K90: 1200 | L90: 2021.7-12
A91: 19 | B91: 庄宝成 | C91: 唐山市丰润县老庄子镇毛家坨公社农机站 | D91: 男 | E91: 13022119550822**** | F91: 丰润区老庄子镇崔家屯村 | G91: 76.7--85.12 | H91: 10 | I91: 200 | J91: 6 | K91: 1200 | L91: 2021.7-12
A92: 20 | B92: 徐长 | C92: 唐山市丰润县老庄子镇毛家坨公社农机站 | D92: 男 | E92: 13022119430223**** | F92: 丰润区老庄子镇范家坨村 | G92: 76.10--83.12 | H92: 8 | I92: 160 | J92: 6 | K92: 960 | L92: 2021.7-12
A93: 21 | B93: 郭建忠 | C93: 唐山市丰润县老庄子镇毛家坨公社农机站 | D93: 男 | E93: 13022119600210**** | F93: 丰润区老庄子镇崔家屯村 | G93: 78.3--83.8 | H93: 6 | I93: 120 | J93: 6 | K93: 720 | L93: 2021.7-12
A94: 22 | B94: 张德清 | C94: 唐山市丰润县老庄子镇毛家坨公社农机站 | D94: 男 | E94: 13022119470725**** | F94: 丰润区老庄子镇毛一村 | G94: 75.1--85.12 | H94: 11 | I94: 220 | J94: 6 | K94: 1320 | L94: 2021.7-12
A95: 23 | B95: 赵庆贵 | C95: 唐山市丰润县三女河公社农机站 | D95: 男 | E95: 13022119521116**** | F95: 丰润区石各庄镇方子里村 | G95: 74.12--85.12 | H95: 12 | I95: 240 | J95: 6 | K95: 1440 | L95: 2021.7-12
A96: 24 | B96: 邱玉合 | C96: 唐山市丰润县三女河公社农机站 | D96: 男 | E96: 13022119570809**** | F96: 丰润区石各庄镇方子里村 | G96: 75.9--85.12 | H96: 11 | I96: 220 | J96: 6 | K96: 1320 | L96: 2021.7-12
A97: 25 | B97: 刘宝英 | C97: 唐山市丰润县三女河公社农机站 | D97: 男 | E97: 13022119360323**** | F97: 丰润区石各庄镇韩家街村 | G97: 74.11--85.12 | H97: 12 | I97: 240 | J97: 6 | K97: 1440 | L97: 2021.7-12
A98: 26 | B98: 邱天明 | C98: 唐山市丰润县三女河公社农机站 | D98: 男 | E98: 13022119551124**** | F98: 丰润区石各庄镇韩家街村 | G98: 76.4--85.12 | H98: 10 | I98: 200 | J98: 6 | K98: 1200 | L98: 2021.7-12
A99: 27 | B99: 刘得义 | C99: 唐山市丰润县三女河公社农机站 | D99: 男 | E99: 13022119550820**** | F99: 丰润区石各庄镇韩家街村 | G99: 75.3--85.12 | H99: 11 | I99: 220 | J99: 6 | K99: 1320 | L99: 2021.7-12
A100: 28 | B100: 刘宝山 | C100: 唐山市丰润县三女河公社农机站 | D100: 男 | E100: 13022119570808**** | F100: 丰润区石各庄镇邵家街村 | G100: 75.9--85.12 | H100: 11 | I100: 220 | J100: 6 | K100: 1320 | L100: 2021.7-12
A101: 29 | B101: 王海成(原乡镇、县已认定） | C101: 河北省秦皇岛市青龙满族自治县娄子石公社农机站 | D101: 男 | E101: 13022119471213**** | F101: 河北省秦皇岛青龙娄子石乡齐集口村 | G101: 71.3--91.6 | H101: 20 | I101: 400 | J101: 6 | K101: 2400 | L101: 2021.7-12
A102: 30 | B102: 周铁厂 | C102: 唐山市丰润县三女河公社农机站 | D102: 男 | E102: 13022119541008**** | F102: 丰润区石各庄镇三女河村 | G102: 78.3--85.12 | H102: 8 | I102: 160 | J102: 6 | K102: 960 | L102: 2021.7-12
A103: 31 | B103: 王振永 | C103: 唐山市丰润县三女河公社农机站 | D103: 男 | E103: 13022119531209**** | F103: 丰润区石各庄镇三女河村 | G103: 79.4--85.12 | H103: 7 | I103: 140 | J103: 6 | K103: 840 | L103: 2021.7-12
A104: 32 | B104: 张俊如 | C104: 唐山市丰润县三女河公社农机站 | D104: 男 | E104: 13022119530103**** | F104: 丰润区石各庄镇三女河村 | G104: 78.3--85.12 | H104: 8 | I104: 160 | J104: 6 | K104: 960 | L104: 2021.7-12
A105: 33 | B105: 张国永 | C105: 唐山市丰润县三女河公社农机站 | D105: 男 | E105: 13022119540518**** | F105: 丰润区石各庄镇三女河村 | G105: 75.3--85.12 | H105: 11 | I105: 220 | J105: 6 | K105: 1320 | L105: 2021.7-12
A106: 34 | B106: 韩俊福 | C106: 唐山市丰润县三女河公社农机站 | D106: 男 | E106: 13022119560705**** | F106: 丰润区石各庄镇高庄子村 | G106: 75.3--85.12 | H106: 11 | I106: 220 | J106: 6 | K106: 1320 | L106: 2021.7-12
A107: 35 | B107: 韩青 | C107: 唐山市丰润县三女河公社农机站 | D107: 男 | E107: 13022119500916**** | F107: 丰润区石各庄镇高庄子村 | G107: 74.12--85.12 | H107: 12 | I107: 240 | J107: 6 | K107: 1440 | L107: 2021.7-12
A108: 36 | B108: 党恩召 | C108: 唐山市丰润县三女河公社农机站 | D108: 男 | E108: 13022119370122**** | F108: 丰润区石各庄镇三女河村 | G108: 75.7--85.12 | H108: 11 | I108: 220 | J108: 6 | K108: 1320 | L108: 2021.7-12
A109: 37 | B109: 张增 | C109: 唐山市丰润县三女河公社农机站 | D109: 男 | E109: 13022119550617**** | F109: 丰润区石各庄镇黄花港村 | G109: 75.3--85.12 | H109: 11 | I109: 220 | J109: 6 | K109: 1320 | L109: 2021.7-12
A110: 38 | B110: 马玉常 | C110: 唐山市丰润县三女河公社农机站 | D110: 男 | E110: 13022119550812**** | F110: 丰润区石各庄镇黄花港村 | G110: 76.4--85.12 | H110: 10 | I110: 200 | J110: 6 | K110: 1200 | L110: 2021.7-12
A111: 39 | B111: 刘少保 | C111: 唐山市丰润县三女河公社农机站 | D111: 男 | E111: 13022119530304**** | F111: 丰润区石各庄镇黄花港村 | G111: 74.12--85.12 | H111: 12 | I111: 240 | J111: 6 | K111: 1440 | L111: 2021.7-12
A112: 40 | B112: 白井国 | C112: 唐山市丰润县三女河公社农机站 | D112: 男 | E112: 13022119560112**** | F112: 丰润区石各庄镇黄花港村 | G112: 78.3--85.12 | H112: 8 | I112: 160 | J112: 6 | K112: 960 | L112: 2021.7-12
A113: 41 | B113: 刘金仲 | C113: 唐山市丰润县老庄子镇毛家坨公社农机站 | D113: 男 | E113: 13022119600702**** | F113: 丰润区老庄子镇姚家庄村 | G113: 78.8--85.12 | H113: 8 | I113: 160 | J113: 6 | K113: 960 | L113: 2021.7-12
A114: 合计 | I114: =SUM(I73:I112) -> 8080 | K114: =SUM(K73:K113) -> 49040
A115: 庆北办事处2021年7月-12月年满60周岁农机员生活补助公示表
A116: 公示单位（盖章）： | I116: 公示日期：
A117: 序号 | B117: 姓名 | C117: 原工作单位 | D117: 性别 | E117: 身份证号码 | F117: 户口所在地（镇办、村） | G117: 公益服务认定时间 | H117: 公益服务认定年限 | I117: 月补助金额（元） | J117: 补贴月数 | K117: 补助总金额 | L117: 补助时间 | M117: 备注
A118: 1 | B118: 刘福青 | C118: 郑庄子乡农机站 | D118: 男 | E118: 13020519580329**** | F118: 河北省唐山市高新区梁各庄 | G118: 78.3--85.12 | H118: 8 | I118: =H118*20 -> 160 | J118: 6 | K118: =I118*J118 -> 960 | L118: 2021.7-12
A119: 2 | B119: 杜全广 | C119: 郑庄子乡农机站 | D119: 男 | E119: 13020519560329**** | F119: 河北省唐山市高新区梁各庄 | G119: 78.3--85.12 | H119: 8 | I119: =H119*20 -> 160 | J119: 6 | K119: =I119*J119 -> 960 | L119: 2021.7-12
A120: 3 | B120: 杜广文 | C120: 郑庄子乡农机站 | D120: 男 | E120: 13020519510906**** | F120: 河北省唐山市高新区梁各庄 | G120: 78.3--85.12 | H120: 8 | I120: 160 | J120: 6 | K120: 960 | L120: 2021.7-12
A121: 4 | B121: 孙丙红 | C121: 新庄子农机站 | D121: 女 | E121: 13020519580715**** | F121: 河北省唐山市高新区三益庄 | G121: 76.8--85.12 | H121: 10 | I121: 200 | J121: 6 | K121: 1200 | L121: 2021.7-12
A122: 5 | B122: 杨万金 | C122: 郑庄子乡农机站 | D122: 男 | E122: 13020519561016**** | F122: 河北省唐山市高新区前白寺口 | G122: 78.3--85.12 | H122: 8 | I122: 160 | J122: 6 | K122: 960 | L122: 2021.7-12
A123: 6 | B123: 罗仁兴 | C123: 老庄子农机站 | D123: 男 | E123: 13022119520716**** | F123: 河北省唐山市高新区詹官屯 | G123: 71.7--85.12 | H123: 15 | I123: 300 | J123: 6 | K123: 1800 | L123: 2021.7-12
A124: 7 | B124: 阚立春 | C124: 老庄子农机站 | D124: 男 | E124: 13022119530306**** | F124: 河北省唐山市高新区詹官屯 | G124: 74.7--85.12 | H124: 12 | I124: 240 | J124: 6 | K124: 1440 | L124: 2021.7-12
A125: 8 | B125: 鲁教江 | C125: 老庄子农机站 | D125: 男 | E125: 13022119480109**** | F125: 河北省唐山市高新区詹官屯 | G125: 69.10--85.12 | H125: 17 | I125: 340 | J125: 6 | K125: 2040 | L125: 2021.7-12
A126: 9 | B126: 罗文华 | C126: 老庄子农机站 | D126: 男 | E126: 13022119500719**** | F126: 河北省唐山市高新区詹官屯 | G126: 79.7--85.12 | H126: 7 | I126: 140 | J126: 6 | K126: 840 | L126: 2021.7-12
A127: 10 | B127: 陈连友 | C127: 老庄子农机站 | D127: 男 | E127: 13022119510827**** | F127: 河北省唐山市高新区詹官屯 | G127: 77.5--85.12 | H127: 9 | I127: 180 | J127: 6 | K127: 1080 | L127: 2021.7-12
A128: 11 | B128: 秦恩双 | C128: 郑庄子乡农机站 | D128: 男 | E128: 13020519560304**** | F128: 河北省唐山市高新区北白寺口 | G128: 78.3--85.12 | H128: 8 | I128: 160 | J128: 6 | K128: 960 | L128: 2021.7-12
A129: 12 | B129: 王连江 | C129: 郑庄子乡农机站 | D129: 男 | E129: 13020519551122**** | F129: 河北省唐山市高新区中白寺口 | G129: 78.3--85.12 | H129: 8 | I129: 160 | J129: 6 | K129: 960 | L129: 2021.7-12
A130: 13 | B130: 杜久余 | C130: 郑庄子乡农机站 | D130: 男 | E130: 13020519570822**** | F130: 河北省唐山市高新区刘家洼 | G130: 79.12--85.12 | H130: 7 | I130: 140 | J130: 6 | K130: 840 | L130: 2021.7-12
A131: 14 | B131: 杜久会 | C131: 郑庄子乡农机站 | D131: 男 | E131: 13020519540104**** | F131: 河北省唐山市高新区刘家洼 | G131: 79.12--85.12 | H131: 7 | I131: 140 | J131: 6 | K131: 840 | L131: 2021.7-12
A132: 15 | B132: 张富英 | C132: 郑庄子乡农机站 | D132: 女 | E132: 13020519590107**** | F132: 河北省唐山市高新区刘家洼 | G132: 79.12--85.12 | H132: 7 | I132: 140 | J132: 6 | K132: 840 | L132: 2021.7-12
A133: 16 | B133: 刘丽玲 | C133: 郑庄子乡农机站 | D133: 女 | E133: 13020519510331**** | F133: 河北省唐山市高新区刘家洼 | G133: 79.12--85.12 | H133: 7 | I133: 140 | J133: 6 | K133: 840 | L133: 2021.7-12
A134: 17 | B134: 宋福刚 | C134: 任各庄农机站 | D134: 男 | E134: 13022119530830**** | F134: 河北省唐山市高新区宋各庄 | G134: 76.8--85.12 | H134: 10 | I134: 200 | J134: 6 | K134: 1200 | L134: 2021.7-12
A135: 18 | B135: 肖振林 | C135: 任各庄农机站 | D135: 男 | E135: 13022119570403**** | F135: 河北省唐山市高新区宋各庄 | G135: 81.8--85.12 | H135: 5 | I135: 100 | J135: 6 | K135: 600 | L135: 2021.7-12
A136: 19 | B136: 李发 | C136: 任各庄农机站 | D136: 男 | E136: 13022119451120**** | F136: 河北省唐山市高新区宋各庄 | G136: 75.8--85.12 | H136: 11 | I136: 220 | J136: 4 | K136: 880 | L136: 2021.7-10 | M136: （2021.10.05去世），11月停发
A137: 20 | B137: 刘光忠 | C137: 任各庄农机站 | D137: 男 | E137: 13022119370528**** | F137: 河北省唐山市高新区宋各庄 | G137: 72.9--84.12 | H137: 13 | I137: 260 | J137: 6 | K137: 1560 | L137: 2021.7-12
A138: 21 | B138: 宋永良 | C138: 任各庄农机站 | D138: 男 | E138: 13022119560822**** | F138: 河北省唐山市高新区宋各庄 | G138: 76.8--85.12 | H138: 10 | I138: 200 | J138: 6 | K138: 1200 | L138: 2021.7-12
A139: 22 | B139: 刘茂庆 | C139: 任各庄农机站 | D139: 男 | E139: 13022119590417**** | F139: 河北省唐山市高新区宋各庄 | G139: 80.8--85.12 | H139: 6 | I139: 120 | J139: 6 | K139: 720 | L139: 2021.7-12
A140: 23 | B140: 刘瑞林 | C140: 郑庄子乡农机站 | D140: 男 | E140: 13020519520918**** | F140: 河北省唐山市高新区郑庄子 | G140: 79.11--84.4 | H140: 5 | I140: 100 | J140: 6 | K140: 600 | L140: 2021.7-12
A141: 24 | B141: 刘淑芬 | C141: 郑庄子乡农机站 | D141: 女 | E141: 13020519550905**** | F141: 河北省唐山市高新区郑庄子 | G141: 78.3--85.12 | H141: 8 | I141: 160 | J141: 6 | K141: 960 | L141: 2021.7-12
A142: 25 | B142: 刘立凤 | C142: 郑庄子乡农机站 | D142: 女 | E142: 13020519530504**** | F142: 河北省唐山市高新区郑庄子 | G142: 78.3--85.12 | H142: 8 | I142: 160 | J142: 6 | K142: 960 | L142: 2021.7-12
A143: 26 | B143: 窦素秋 | C143: 郑庄子乡农机站 | D143: 女 | E143: 13020519580929**** | F143: 河北省唐山市高新区梁各庄 | G143: 78.3--85.12 | H143: 8 | I143: 160 | J143: 6 | K143: 960 | L143: 2021.7-12
A144: 27 | B144: 张瑞芬 | C144: 丰润区姜家营农机站 | D144: 女 | E144: 13020519561205**** | F144: 河北省唐山市高新区刘家洼 | G144: 74.4-85.12 | H144: 11 | I144: 220 | J144: 6 | K144: 1320 | L144: 2021.7-12
A145: 合计 | I145: 5260 | K145: =SUM(K118:K144) -> 28480
A146: 街道办事处2021年7月-12月年满60周岁农机员生活补助公示表
A147: 公示单位（盖章）： | I147: 公示日期：
A148: 序号 | B148: 姓名 | C148: 原工作单位 | D148: 性别 | E148: 身份证号码 | F148: 户口所在地（镇办、村） | G148: 公益服务认定时间 | H148: 公益服务认定年限 | I148: 月补助金额（元） | J148: 补贴月数 | K148: 补助总金额 | L148: 补助时间 | M148: 备注
A149: 1 | B149: 王淑彩 | C149: 付家屯农机站 | D149: 女 | E149: 13020519520608**** | F149: 街道办付家屯村 | G149: 73.4--79.12 | H149: 7 | I149: =H149*20 -> 140 | J149: 6 | K149: =I149*J149 -> 840 | L149: 2021.7-12
A150: 2 | B150: 周连兴 | C150: 付家屯农机站 | D150: 男 | E150: 13020519550308**** | F150: 街道办新城子村 | G150: 77.3--81.6 | H150: 5 | I150: 100 | J150: 6 | K150: =I150*J150 -> 600 | L150: 2021.7-12
A151: 3 | B151: 曹凤仲 | C151: 付家屯农机站 | D151: 男 | E151: 13020519481022**** | F151: 街道办新城子村 | G151: 69.9--85.5 | H151: 16 | I151: =H151*20 -> 320 | J151: 6 | K151: 1920 | L151: 2021.7-12
A152: 4 | B152: 张兆华 | C152: 付家屯农机站 | D152: 男 | E152: 13020519560206**** | F152: 街道办新城子村 | G152: 74.3--85.5 | H152: 12 | I152: 240 | J152: 6 | K152: 1440 | L152: 2021.7-12
A153: 5 | B153: 姜淑芹 | C153: 付家屯农机站 | D153: 女 | E153: 13020519520521**** | F153: 街道办新城子村 | G153: 73.4--85.5 | H153: 13 | I153: 260 | J153: 6 | K153: 1560 | L153: 2021.7-12
A154: 6 | B154: 刘铁平 | C154: 付家屯农机站 | D154: 男 | E154: 13020519520501**** | F154: 街道办新城子村 | G154: 78.4--85.12 | H154: 8 | I154: 160 | J154: 6 | K154: 960 | L154: 2021.7-12
A155: 7 | B155: 孙瑞忠 | C155: 任各庄农机站 | D155: 男 | E155: 13022119501226**** | F155: 街道办孙家庄村 | G155: 79.8--85.12 | H155: 7 | I155: 140 | J155: 6 | K155: 840 | L155: 2021.7-12
A156: 8 | B156: 朱学志 | C156: 任各庄农机站 | D156: 男 | E156: 13022119510907**** | F156: 街道办孙家庄村 | G156: 70.12--85.12 | H156: 16 | I156: 320 | J156: 6 | K156: 1920 | L156: 2021.7-12
A157: 9 | B157: 孙艳青 | C157: 任各庄农机站 | D157: 男 | E157: 13022119540502**** | F157: 河北省唐山市高新区孙家庄 | G157: 73.8--85.12 | H157: 13 | I157: 260 | J157: 6 | K157: 1560 | L157: 2021.7-12
A158: 10 | B158: 赵文亚 | C158: 付家屯农机站 | D158: 男 | E158: 13020519581111**** | F158: 街道办龙王庙村 | G158: 80.1--85.5 | H158: 6 | I158: 120 | J158: 6 | K158: 720 | L158: 2021.7-12
A159: 11 | B159: 庞文泽 | C159: 付家屯农机站 | D159: 男 | E159: 13020519570623**** | F159: 街道办龙王庙村 | G159: 75.8--85.5 | H159: 10 | I159: 200 | J159: 6 | K159: 1200 | L159: 2021.7-12
A160: 12 | B160: 刘焕新 | C160: 付家屯农机站 | D160: 男 | E160: 13020519531015**** | F160: 河北省唐山市高新区瓦官庄 | G160: 71.11--85.5 | H160: 14 | I160: 280 | J160: 6 | K160: 1680 | L160: 2021.7-12
A161: 13 | B161: 李绍平 | C161: 付家屯农机站 | D161: 男 | E161: 13020519550705**** | F161: 街道办瓦官庄村 | G161: 77.3--85.5 | H161: 9 | I161: 180 | J161: 6 | K161: 1080 | L161: 2021.7-12
A162: 14 | B162: 李洪良 | C162: 付家屯农机站 | D162: 男 | E162: 13020519560227**** | F162: 街道办付家屯村 | G162: 77.4--85.5 | H162: 9 | I162: 180 | J162: 6 | K162: 1080 | L162: 2021.7-12
A163: 15 | B163: 庞文田 | C163: 付家屯农机站 | D163: 男 | E163: 13020519511016**** | F163: 街道办富庄村 | G163: 74.2--85.5 | H163: 12 | I163: 240 | J163: 6 | K163: 1440 | L163: 2021.7-12
A164: 16 | B164: 许文峰 | C164: 付家屯农机站 | D164: 男 | E164: 13020519510510**** | F164: 街道办许鄄子村 | G164: 82.10--85.12 | H164: 4 | I164: 80 | J164: 6 | K164: 480 | L164: 2021.7-12
A165: 17 | B165: 岳继存 | C165: 付家屯农机站 | D165: 男 | E165: 13020519501213**** | F165: 街道办王鄄子村 | G165: 71.1--85.5 | H165: 15 | I165: 300 | J165: 6 | K165: 1800 | L165: 2021.7-12
A166: 18 | B166: 王亚东 | C166: 付家屯农机站 | D166: 男 | E166: 13020519510722**** | F166: 街道办王鄄子村 | G166: 70.8--85.5 | H166: 15 | I166: 300 | J166: 6 | K166: 1800 | L166: 2021.7-12
A167: 19 | B167: 刘焕臣 | C167: 刘家营农机站 | D167: 男 | E167: 13020619581006**** | F167: 街道办富庄村 | G167: 76.10--85.12 | H167: 10 | I167: 200 | J167: 6 | K167: 1200 | L167: 2021.7-12
A168: 20 | B168: 梁玉霞 | C168: 新庄子农机站 | D168: 女 | E168: 13020519550322**** | F168: 街道办许鄄子村 | G168: 74.5--82.12 | H168: 9 | I168: 180 | J168: 6 | K168: 1080 | L168: 2021.7-12
A169: 合计 | I169: =SUM(I149:I168) -> 4200 | K169: =SUM(K149:K168) -> 25200

Sheet 兽医
A1: 老庄子镇2021年7月-12月年满60周岁基层兽医生活补助公示表
A2: 公示单位（盖章）： | I2: 公示日期：
A3: 序号 | B3: 姓名 | C3: 原工作单位 | D3: 性别 | E3: 身份证号码 | F3: 户口所在地（镇办、村） | G3: 公益服务认定时间 | H3: 公益服务认定年限 | I3: 月补助金额（元） | J3: 补贴月数 | K3: 补助总金额 | L3: 补助时间 | M3: 备注
A4: 1 | B4: 董学恕 | C4: 老庄子兽医站毛家坨分站 | D4: 男 | E4: 13022119440504**** | F4: 老庄子镇后冯各庄村 | G4: 72.2--82.8 | H4: 11 | I4: =H4*20 -> 220 | J4: 6 | K4: =I4*J4 -> 1320 | L4: 2021.7-12
A5: 2 | B5: 赵贺成 | C5: 老庄子兽医站 （ 小城子） | D5: 男 | E5: 13022119520820**** | F5: 老庄子镇夏屋村 | G5: 70.9--82.11 | H5: 13 | I5: =H5*20 -> 260 | J5: 6 | K5: =I5*J5 -> 1560 | L5: 2021.7-12
A6: 3 | B6: 尹海 | C6: 原老庄子公社兽医站 | D6: 男 | E6: 13022119561202**** | F6: 老庄子镇沙雾庄村 | G6: 75.1--82.10 | H6: 8 | I6: 160 | J6: 6 | K6: 960 | L6: 2021.7-12
A7: 4 | B7: 郭希纯 | C7: 老庄子兽医站毛家坨分站 | D7: 男 | E7: 13022119510106**** | F7: 老庄子镇七王庄村 | G7: 72.2--82.10 | H7: 11 | I7: 220 | J7: 6 | K7: 1320 | L7: 2021.7-12
A8: 合计 | I8: =SUM(I4:I7) -> 860 | K8: =SUM(K4:K7) -> 5160
A9: 三女河办事处2021年7月-12月年满60周岁基层兽医生活补助公示表
A10: 公示单位（盖章）： | I10: 公示日期：
A11: 序号 | B11: 姓名 | C11: 原工作单位 | D11: 性别 | E11: 身份证号码 | F11: 户口所在地（镇、村） | G11: 公益服务认定时间 | H11: 公益服务认定年限 | I11: 月补助金额（元） | J11: 补贴月数 | K11: 补助总金额 | L11: 补助时间 | M11: 备注
A12: 1 | B12: 王贵濮 | C12: 河北省唐山市丰润县毛家坨公社兽医站 | D12: 男 | E12: 13022119371128**** | F12: 丰润区老庄子镇毛家坨一村 | G12: 71.3--82.10 | H12: 12 | I12: =H12*20 -> 240 | J12: 6 | K12: =I12*J12 -> 1440 | L12: 2021.7-12
A13: 2 | B13: 崔立华 | C13: 河北省唐山市丰润县三女河公社兽医站 | D13: 男 | E13: 13022119580820**** | F13: 丰润区石各庄镇邵家街村 | G13: 76.9--82.12 | H13: 7 | I13: =H13*20 -> 140 | J13: 6 | K13: =I13*J13 -> 840 | L13: 2021.7-12
A14: 3 | B14: 李及勇 | C14: 河北省唐山市丰润县三女河公社兽医站 | D14: 男 | E14: 13022119550228**** | F14: 丰润区石各庄镇韩家街村 | G14: 73.3--82.12 | H14: 10 | I14: 200 | J14: 6 | K14: 1200 | L14: 2021.7-12
A15: 4 | B15: 张杰 | C15: 河北省唐山市丰润县三女河公社兽医站 | D15: 男 | E15: 13022119551025**** | F15: 丰润区石各庄镇方子里村 | G15: 73.11--82.12 | H15: 10 | I15: 200 | J15: 6 | K15: 1200 | L15: 2021.7-12
A16: 5 | B16: 李国艾 | C16: 河北省唐山市丰润县三女河公社兽医站 | D16: 男 | E16: 13022119520530**** | F16: 丰润区石各庄镇高庄子村 | G16: 72.5--82.12 | H16: 11 | I16: 220 | J16: 6 | K16: 1320 | L16: 2021.7-12
A17: 6 | B17: 刘保禄 | C17: 河北省唐山市丰润县三女河公社兽医站 | D17: 男 | E17: 13022119511225**** | F17: 丰润区石各庄镇黄花港村 | G17: 71.2--82.12 | H17: 12 | I17: 240 | J17: 6 | K17: 1440 | L17: 2021.7-12
A18: 合计 | I18: =SUM(I12:I17) -> 1240 | K18: =SUM(K12:K17) -> 7440
A19: 庆北办事处2021年7月-12月年满60周岁基层兽医生活补助公示表
A20: 公示单位（盖章）： | I20: 公示日期：
A21: 序号 | B21: 姓名 | C21: 原工作单位 | D21: 性别 | E21: 身份证号码 | F21: 户口所在地（镇办、村） | G21: 公益服务认定时间 | H21: 公益服务认定年限 | I21: 月补助金额（元） | J21: 补贴月数 | K21: 补助总金额 | L21: 补助时间 | M21: 备注
A22: 1 | B22: 杜瑞荣 | C22: 郑庄子乡兽医站 | D22: 女 | E22: 13020519560801**** | F22: 河北省唐山市高新区刘家洼 | G22: 78.12--82.12 | H22: 5 | I22: 100 | J22: 6 | K22: =I22*J22 -> 600 | L22: 2021.7-12
A23: 街道办事处2021年7月-12月年满60周岁基层兽医生活补助公示表
A24: 公示单位（盖章）： | I24: 公示日期：
A25: 序号 | B25: 姓名 | C25: 原工作单位 | D25: 性别 | E25: 身份证号码 | F25: 户口所在地（镇办、村） | G25: 公益服务认定时间 | H25: 公益服务认定年限 | I25: 月补助金额（元） | J25: 补贴月数 | K25: 补助总金额 | L25: 补助时间 | M25: 备注
A26: 1 | B26: 姜连全 | C26: 付家屯兽医站 | D26: 男 | E26: 13020519580409**** | F26: 街道办龙王庙村 | G26: 77.3--82.12 | H26: 6 | I26: 120 | J26: 6 | K26: =I26*J26 -> 720 | L26: 2021.7-12
A27: 2 | B27: 庞振林 | C27: 付家屯兽医站 | D27: 男 | E27: 13020519560724**** | F27: 街道办瓦官庄村 | G27: 74.8--82.12 | H27: 9 | I27: =H27*20 -> 180 | J27: 6 | K27: =I27*J27 -> 1080 | L27: 2021.7-12
A28: 3 | B28: 田 禾 | C28: 付家屯兽医站 | D28: 男 | E28: 13020519490307**** | F28: 街道办龙王庙村 | G28: 68.4--82.12 | H28: 15 | I28: =H28*20 -> 300 | J28: 6 | K28: =I28*J28 -> 1800 | L28: 2021.7-12
A29: 4 | B29: 付文海 | C29: 付家屯兽医站 | D29: 男 | E29: 13020519561109**** | F29: 街道办付家屯村 | G29: 74.12--82.12 | H29: 9 | I29: 180 | J29: 6 | K29: 1080 | L29: 2021.7-12
A30: 合计 | I30: =SUM(I26:I29) -> 780 | K30: =SUM(K26:K29) -> 4680

Sheet 农技员
A1: 老庄子镇2021年7月-12月年满60周岁农技员生活补助公示表
A2: 公示单位（盖章）： | I2: 公示日期：
A3: 序号 | B3: 姓名 | C3: 原工作单位 | D3: 性别 | E3: 身份证号码 | F3: 户口所在地（镇办、村） | G3: 公益服务认定时间 | H3: 公益服务年限 | I3: 月补助金额（元） | J3: 补贴月数 | K3: 补助总金额 | L3: 补助时间 | M3: 备注
A4: 1 | B4: 党希友 | C4: 老庄子镇农技站 | D4: 男 | E4: 13022119530206**** | F4: 老庄子镇党家庄村 | G4: 76.5--99.12 | H4: 20 | I4: =H4*20 -> 400 | J4: 6 | K4: =I4*J4 -> 2400 | L4: 2021.7-12
A5: 2 | B5: 赵长生 | C5: 老庄子镇农技站 | D5: 男 | E5: 13022119600906**** | F5: 老庄子镇后冯各庄村 | G5: 83.04--88.12 | H5: 6 | I5: =H5*20 -> 120 | J5: 6 | K5: 720 | L5: 2021.7-12
A6: 合计 | I6: =SUM(I4:I4) -> 400 | K6: =SUM(K4:K5) -> 3120
A7: 三女河办事处2021年7月-12月年满60周岁农技员生活补助公示表
A8: 公示单位（盖章）： | I8: 公示日期：
A9: 序号 | B9: 姓名 | C9: 原工作单位 | D9: 性别 | E9: 身份证号码 | F9: 户口所在地（镇、村） | G9: 公益服务认定时间 | H9: 公益服务年限 | I9: 月补助金额（元） | J9: 补贴月数 | K9: 补助总金额 | L9: 补助时间 | M9: 备注
A10: 1 | B10: 张宝奇 | C10: 唐山市丰润县老庄子镇毛家坨公社农技站 | D10: 男 | E10: 13022119410219**** | F10: 丰润区老庄子镇姚家庄村 | G10: 78.9--99.12 | H10: 20 | I10: =H10*20 -> 400 | J10: 6 | K10: =I10*J10 -> 2400 | L10: 2021.7-12
A11: 2 | B11: 张尔章 | C11: 原毛家坨公社、毛家坨管理区农技服务站 | D11: 男 | E11: 13022119540912**** | F11: 丰润区老庄子镇毛一村 | G11: 78.9--98.9 | H11: 20 | I11: =H11*20 -> 400 | J11: 6 | K11: =I11*J11 -> 2400 | L11: 2021.7-12
A12: 3 | B12: 张贵安 | C12: 唐山市丰润县老庄子镇毛家坨公社农技站 | D12: 男 | E12: 13022119530416**** | F12: 丰润区老庄子镇毛三村 | G12: 72.2--92.3 | H12: 20 | I12: 400 | J12: 6 | K12: 2400 | L12: 2021.7-12
A13: 4 | B13: 王守春 | C13: 唐山市丰润县三女河公社农技站 | D13: 男 | E13: 13022119430325**** | F13: 丰润区石各庄镇邵家街村 | G13: 71.1--86.6 | H13: 16 | I13: 320 | J13: 6 | K13: 1920 | L13: 2021.7-12
A14: 5 | B14: 张润甲 | C14: 唐山市丰润县老庄子镇毛家坨公社 | D14: 男 | E14: 13022119550329**** | F14: 丰润区老庄子镇崔家屯村 | G14: 75.5--82.6 | H14: 8 | I14: 160 | J14: 6 | K14: 960 | L14: 2021.7-12
A15: 6 | B15: 于景海 | C15: 唐山市丰润县老庄子镇毛家坨公社农技服务站 | D15: 男 | E15: 13022119540327**** | F15: 丰润区老庄子镇崔家屯村 | G15: 85.3--98.4 | H15: 14 | I15: 280 | J15: 6 | K15: 1680 | L15: 2021.7-12
A16: 7 | B16: 刘春平 | C16: 唐山市丰润县老庄子镇毛家坨公社农业技术推广站 | D16: 男 | E16: 13022119530518**** | F16: 丰润区老庄子镇崔家屯村 | G16: 78.12--98.10 | H16: 20 | I16: 400 | J16: 6 | K16: 2400 | L16: 2021.7-12
A17: 8 | B17: 王振生 | C17: 唐山市丰润县老庄子镇三女河乡农业技术服务站 | D17: 男 | E17: 13022119330813**** | F17: 丰润区石各庄镇三女河村 | G17: 90.4--99.12 | H17: 10 | I17: 200 | J17: 6 | K17: 1200 | L17: 2021.7-12
A18: 合计 | I18: =SUM(I10:I17) -> 2560 | K18: =SUM(K10:K17) -> 15360
A19: 庆北办事处2021年7月-12月年满60周岁农技员生活补助公示表
A20: 公示单位（盖章）： | I20: 公示日期：
A21: 序号 | B21: 姓名 | C21: 原工作单位 | D21: 性别 | E21: 身份证号码 | F21: 户口所在地（镇办、村） | G21: 公益服务认定时间 | H21: 公益服务年限 | I21: 月补助金额（元） | J21: 补贴月数 | K21: 补助总金额 | L21: 补助时间 | M21: 备注
A22: 1 | B22: _ | C22: _ | D22: _ | E22: _ | F22: _ | G22: _ | H22: _ | I22: _ | J22: _ | K22: _ | L22: _ | M22: _
A23: 街道办事处2021年7月-12月年满60周岁农技员生活补助公示表
A24: 公示单位（盖章）： | I24: 公示日期：
A25: 序号 | B25: 姓名 | C25: 原工作单位 | D25: 性别 | E25: 身份证号码 | F25: 户口所在地（镇办、村） | G25: 公益服务认定时间 | H25: 公益服务年限 | I25: 月补助金额（元） | J25: 补贴月数 | K25: 补助总金额 | L25: 补助时间 | M25: 备注
A26: 1 | B26: 赵永建 | C26: 付家屯公社 | D26: 男 | E26: 13020519540316**** | F26: 街道办龙王庙村 | G26: 76.8--97.10 | H26: 20 | I26: =H26*20 -> 400 | J26: 6 | K26: =I26*J26 -> 2400 | L26: 2021.7-12
A27: 2 | B27: 李敬恩 | C27: 付家屯公社 | D27: 男 | E27: 13020519481108**** | F27: 街道办瓦官庄村 | G27: 79.10--94.11 | H27: 16 | I27: =H27*20 -> 320 | J27: 6 | K27: =I27*J27 -> 1920 | L27: 2021.7-12
A28: 合计 | I28: =SUM(I26:I27) -> 720 | K28: =SUM(K26:K27) -> 4320

Sheet 汇总
A1: 各镇办2021年7月-12月年满60周岁“三员”人员补贴汇总表
A2: 项目 | B2: 农机员 | D2: 基层兽医 | F2: 农技员 | H2: 合计
B3: 人数 | C3: 补贴金额（元） | D3: 人数 | E3: 补贴金额（元） | F3: 人数 | G3: 补贴金额（元） | H3: 总人数 | I3: 总补贴金额（元）
A4: 老庄子 | B4: 64 | C4: 79920 | D4: 4 | E4: 5160 | F4: 2 | G4: 3120 | H4: =B4+D4+F4 -> 70 | I4: =C4+G4+E4 -> 88200
A5: 三女河 | B5: 41 | C5: 49040 | D5: 6 | E5: 7440 | F5: 8 | G5: 15360 | H5: =B5+D5+F5 -> 55 | I5: =C5+G5+E5 -> 71840
A6: 庆北 | B6: 27 | C6: 28480 | D6: 1 | E6: 600 | F6: 0 | G6: 0 | H6: 28 | I6: =C6+G6+E6 -> 29080
A7: 街道办 | B7: 20 | C7: 25200 | D7: 4 | E7: 4680 | F7: 2 | G7: 4320 | H7: 26 | I7: =C7+G7+E7 -> 34200
A8: 合计 | B8: =SUM(B4:B7) -> 152 | C8: 182640 | D8: 15 | E8: 17880 | F8: 12 | G8: 22800 | H8: 179 | I8: =C8+G8+E8 -> 223320
